fUSD/lending_fUSD_20241104
["ID","MTS","AMOUNT","RATE_DAILY","PERIOD"]
[341269997,1730735524694,-500.0,0.00040273,2]
[341269998,1730735524704,-516.0,0.00040273,2]
[341269999,1730735524714,-520.94,0.00040273,2]
[341270000,1730735524723,-527.03,0.00040273,2]
[341270001,1730735524733,-680.27,0.00040273,2]
[341270002,1730735524742,-568.1,0.00040273,2]
[341270003,1730735524754,-630.31,0.00040273,2]
[341270004,1730735524763,-500.0,0.00040273,2]
[341270005,1730735524773,-511.55,0.00040273,2]
[341270006,1730735524783,-879.99,0.00040273,2]
[341270007,1730735524792,-1000.0,0.00040273,30]
[341270008,1730735524802,-860.12,0.00040273,2]
[341270009,1730735524812,-678.21,0.00040273,2]
[341270010,1730735524822,-777.65,0.00040273,2]
[341270011,1730735524832,-500.0,0.00040273,2]
[341270012,1730735524842,-512.81,0.00040273,2]
[341270013,1730735524853,-1976.03,0.00040273,2]
[341270014,1730735524862,-977.14,0.00040273,2]
[341270015,1730735524874,-500.0,0.00040273,2]
[341270016,1730735524884,-500.0,0.00040273,2]
[341270017,1730735524894,-622.99,0.00040273,2]
[341270018,1730735524903,-712.32,0.00040273,2]
[341270019,1730735524913,-1115.68,0.00040273,2]
[341270020,1730735524923,-500.0,0.00040273,2]
[341270021,1730735524934,-808.98,0.00040273,2]
[341270022,1730735524943,-500.0,0.00040273,2]
[341270023,1730735524954,-1426.9,0.00040273,2]
[341270024,1730735524963,-1323.81,0.00040273,2]
[341270025,1730735524973,-666.03,0.00040273,2]
[341270026,1730735524982,-839.44,0.00040273,2]
[341270027,1730735524991,-500.0,0.00040273,2]
[341270028,1730735525003,-358.50834768,0.00040273,2]
[341270029,1730735525012,-518.63624411,0.00040273,2]
[341270030,1730735525021,-737.61,0.00040273,2]
[341270031,1730735525030,-500.0,0.00040273,2]
[341270032,1730735525040,-628.78,0.00040273,2]
[341270033,1730735525050,-753.23,0.00040273,2]
[341270034,1730735525060,-512.34,0.00040273,2]
[341270035,1730735525070,-690.94,0.00040273,2]
[341270036,1730735525079,-1122.64,0.00040273,2]
[341270037,1730735525089,-956.46,0.00040273,2]
[341270038,1730735525100,-1420.89,0.00040273,2]
[341270039,1730735525109,-705.19,0.00040273,2]
[341270040,1730735525119,-767.22,0.00040273,2]
[341270041,1730735525129,-869.5,0.00040273,2]
[341270042,1730735525139,-712.63,0.00040273,2]
[341270043,1730735525149,-937.08,0.00040273,2]
[341270044,1730735525159,-764.15,0.00040273,2]
[341270045,1730735525169,-500.0,0.00040273,2]
[341270046,1730735525178,-1294.05,0.00040273,2]
[341270047,1730735525189,-510.62,0.00040273,2]
[341270048,1730735525199,-524.31,0.00040273,2]
[341270049,1730735525209,-575.99,0.00040273,2]
[341270050,1730735525219,-1118.2,0.00040273,2]
[341270051,1730735525229,-711.3,0.00040273,2]
[341270052,1730735525238,-500.0,0.00040273,2]
[341270053,1730735525248,-500.0,0.00040273,2]
[341270054,1730735525259,-1519.0,0.00040273,2]
[341270055,1730735525269,-500.0,0.00040273,2]
[341270056,1730735525279,-544.05,0.00040273,2]
[341270057,1730735525289,-1126.44,0.00040273,2]
[341270058,1730735525298,-500.0,0.00040273,2]
[341270059,1730735525308,-375.0,0.00040273,2]
[341270060,1730735525317,-1288.14,0.00040273,2]
[341270061,1730735525327,-543.83,0.00040273,2]
[341270062,1730735525338,-636.36,0.00040273,2]
[341270063,1730735525347,-1218.15,0.00040273,2]
[341270064,1730735525356,-1259.81,0.00040273,2]
[341270065,1730735525365,-1651.88,0.00040273,2]
[341270066,1730735525375,-319.99,0.00040273,2]
[341270067,1730735525385,-1360.92,0.00040273,2]
[341270068,1730735525394,-912.89,0.00040273,2]
[341270069,1730735525404,-500.0,0.00040273,2]
[341270070,1730735525417,-719.39,0.00040273,2]
[341270071,1730735525426,-379.34697313,0.00040273,2]
[341270072,1730735525436,-704.43,0.00040273,2]
[341270073,1730735525445,-669.63,0.00040273,2]
[341270074,1730735525455,-347.55770202,0.00040273,2]
[341270075,1730735525465,-500.0,0.00040273,2]
[341270076,1730735525475,-529.69,0.00040273,2]
[341270077,1730735525484,-466.6784604,0.00040273,2]
[341270078,1730735525494,-1802.68,0.00040273,2]
[341270079,1730735525505,-500.0,0.00040273,2]
[341270080,1730735525514,-500.0,0.00040273,2]
[341270081,1730735525523,-687.5,0.00040273,2]
[341270082,1730735525533,-1321.04,0.00040273,2]
[341270083,1730735525543,-909.72,0.00040273,2]
[341270084,1730735525554,-500.0,0.00040273,2]
[341270085,1730735525563,-500.0,0.00040273,2]
[341270086,1730735525573,-549.42,0.00040273,2]
[341270087,1730735525583,-879.57,0.00040273,2]
[341270088,1730735525593,-571.76,0.00040273,2]
[341270089,1730735525603,-625.47279488,0.00040273,2]
[341270090,1730735525612,-534.69,0.00040273,2]
[341270091,1730735525622,-500.0,0.00040273,2]
[341270092,1730735525632,-939.96,0.00040273,2]
[341270093,1730735525643,-500.0,0.00040273,2]
[341270094,1730735525654,-980.66,0.00040273,2]
[341270095,1730735525664,-500.0,0.00040273,2]
[341270096,1730735525673,-546.11,0.00040273,2]
[341270097,1730735525683,-500.0,0.00040273,2]
[341270098,1730735525695,-511.22,0.00040273,2]
[341270099,1730735525705,-500.0,0.00040273,2]
[341270100,1730735525715,-505.5,0.00040273,2]
[341270101,1730735525725,-984.46,0.00040273,2]
[341270102,1730735525735,-614.73,0.00040273,2]
[341270103,1730735525744,-602.48,0.00040273,2]
[341270104,1730735525757,-500.0,0.00040273,2]
[341270105,1730735525767,-988.32,0.00040273,2]
[341270106,1730735525777,-631.52,0.00040273,2]
[341270107,1730735525786,-553.74,0.00040273,2]
[341270108,1730735525795,-988.27,0.00040273,2]
[341270109,1730735525806,-769.98,0.00040273,2]
[341270110,1730735525815,-1956.97,0.00040273,2]
[341270111,1730735525825,-566.39,0.00040273,2]
[341270112,1730735525835,-1694.4,0.00040273,2]
[341270113,1730735525845,-515.3,0.00040273,2]
[341270114,1730735525857,-879.85,0.00040273,2]
[341270115,1730735525866,-652.97,0.00040273,2]
[341270116,1730735525878,-689.03,0.00040273,2]
[341270117,1730735525887,-500.0,0.00040273,2]
[341270118,1730735525897,-500.0,0.00040273,2]
[341270119,1730735525907,-777.65,0.00040273,2]
[341270120,1730735525917,-216.10178987,0.00040273,2]
[341270121,1730735525928,-500.0,0.00040273,2]
[341270122,1730735525937,-609.2,0.00040273,2]
[341270123,1730735525948,-1141.77,0.00040273,2]
[341270124,1730735525958,-815.25,0.00040273,2]
[341270125,1730735525968,-1247.49,0.00040273,2]
[341270126,1730735525978,-611.47,0.00040273,2]
[341270127,1730735525988,-616.86512989,0.00040273,2]
[341270128,1730735525998,-877.23,0.00040273,2]
[341270129,1730735526010,-1538.63,0.00040273,2]
[341270130,1730735526019,-1051.45,0.00040273,2]
[341270131,1730735526031,-4150.77,0.00040273,2]
[341270132,1730735526041,-1876.8,0.00040273,2]
[341270133,1730735526050,-1151.0,0.00040273,2]
[341270134,1730735526059,-745.46,0.00040273,2]
[341270135,1730735526068,-1770.42,0.00040273,2]
[341270136,1730735526078,-510.09,0.00040273,2]
[341270137,1730735526088,-522.29,0.00040273,2]
[341270138,1730735526099,-958.22,0.00040273,2]
[341270139,1730735526109,-1127.16,0.00040273,2]
[341270140,1730735526119,-865.69,0.00040273,2]
[341270141,1730735526130,-622.8296126,0.00040273,2]
[341270142,1730735526141,-1128.13,0.00040273,2]
[341270143,1730735526150,-1045.13,0.00040273,2]
[341270144,1730735526159,-531.53,0.00040273,2]
[341270145,1730735526168,-1098.81,0.00040273,2]
[341270146,1730735526179,-2026.72,0.00040273,2]
[341270147,1730735526188,-520.4,0.00040273,2]
[341270148,1730735526198,-519.04,0.00040273,2]
[341270149,1730735526208,-500.0,0.00040273,2]
[341270150,1730735526217,-627.52,0.00040273,2]
[341270151,1730735526229,-587.36,0.00040273,2]
[341270152,1730735526239,-2121.93,0.00040273,2]
[341270153,1730735526248,-500.0,0.00040273,2]
[341270154,1730735526259,-582.71,0.00040273,2]
[341270155,1730735526269,-539.9783511,0.00040273,2]
[341270156,1730735526424,-791.14,0.00040273,2]
[341270157,1730735526434,-1427.63,0.00040273,2]
[341270158,1730735526445,-1116.56,0.00040273,2]
[341270159,1730735526457,-2018.13,0.00040273,2]
[341270160,1730735526467,-1093.28,0.00040273,2]
[341270161,1730735526476,-1687.58,0.00040273,2]
[341270162,1730735526487,-1104.45,0.00040273,2]
[341270163,1730735526498,-911.86,0.00040273,2]
[341270164,1730735526510,-835.19,0.00040273,2]
[341270165,1730735526519,-878.68,0.00040273,2]
[341270166,1730735526529,-1098.84,0.00040273,2]
[341270167,1730735526538,-500.0,0.00040273,2]
[341270168,1730735526548,-2183.79,0.00040273,2]
[341270169,1730735526557,-1310.74,0.00040273,2]
[341270170,1730735526566,-820.36,0.00040273,2]
[341270171,1730735526576,-515.02,0.00040273,2]
[341270172,1730735526586,-500.0,0.00040273,2]
[341270173,1730735526595,-1708.91,0.00040273,2]
[341270174,1730735526605,-544.98,0.00040273,2]
[341270175,1730735526615,-660.53,0.00040273,2]
[341270176,1730735526625,-564.44,0.00040273,2]
[341270177,1730735526635,-850.52,0.00040273,2]
[341270178,1730735526644,-752.59,0.00040273,2]
[341270179,1730735526654,-500.0,0.00040273,2]
[341270180,1730735526664,-1296.67,0.00040273,2]
[341270181,1730735526673,-1584.46,0.00040273,2]
[341270182,1730735526682,-1066.3,0.00040273,2]
[341270183,1730735526691,-1582.17,0.00040273,2]
[341270184,1730735526702,-500.0,0.00040273,2]
[341270185,1730735526712,-1042.76,0.00040273,2]
[341270186,1730735526721,-1058.38,0.00040273,2]
[341270187,1730735526731,-505.09,0.00040273,2]
[341270188,1730735526740,-200.0,0.00040273,2]
[341270189,1730735526750,-913.46,0.00040273,2]
[341270190,1730735526760,-2146.82,0.00040273,2]
[341270191,1730735526770,-766.26,0.00040273,2]
[341270192,1730735526780,-1191.45,0.00040273,2]
[341270193,1730735526789,-609.71,0.00040273,2]
[341270194,1730735526799,-938.94,0.00040273,2]
[341270195,1730735526810,-734.64,0.00040273,2]
[341270196,1730735526819,-530.41,0.00040273,2]
[341270197,1730735526829,-1127.04,0.00040273,2]
[341270198,1730735526838,-654.01,0.00040273,2]
[341270199,1730735526848,-3340.62,0.00040273,2]
[341270200,1730735526858,-10593.24,0.00040273,2]
[341270201,1730735526868,-735.14,0.00040273,2]
[341270202,1730735526878,-3005.2,0.00040273,2]
[341270203,1730735526887,-1246.62,0.00040273,2]
[341270204,1730735526896,-500.0,0.00040273,2]
[341270205,1730735526906,-528.03,0.00040273,2]
[341270206,1730735526917,-558.26,0.00040273,2]
[341270207,1730735526927,-656.86,0.00040273,2]
[341270208,1730735526936,-1000.0,0.00040273,2]
[341270209,1730735526945,-625.73,0.00040273,2]
[341270210,1730735526955,-2616.04,0.00040273,2]
[341270211,1730735526964,-1222.7,0.00040273,2]
[341270212,1730735526974,-514.78,0.00040273,2]
[341270213,1730735526984,-3461.86,0.00040273,2]
[341270214,1730735526993,-500.0,0.00040273,2]
[341270215,1730735527006,-500.0,0.00040273,2]
[341270216,1730735527016,-954.74,0.00040273,2]
[341270217,1730735527026,-692.32,0.00040273,2]
[341270218,1730735527036,-596.33,0.00040273,2]
[341270219,1730735527045,-624.74,0.00040273,2]
[341270220,1730735527055,-174.17818,0.00040288,7]
[341270221,1730735527064,-1255.75,0.0004041,120]
[341270222,1730735527074,-174.17818,0.00040488,7]
[341270223,1730735527084,-998.0,0.00040506,7]
[341270224,1730735527094,-519.87,0.00040547,2]
[341270225,1730735527103,-586.98511498,0.00040547,2]
[341270226,1730735527113,-595.97,0.00040547,2]
[341270227,1730735527125,-562.46,0.00040547,2]
[341270228,1730735527135,-845.59,0.00040547,2]
[341270229,1730735527146,-557.19726514,0.00040547,2]
[341270230,1730735527158,-750.1,0.00040547,2]
[341270231,1730735527169,-647.01580049,0.00040547,2]
[341270232,1730735527180,-567.62,0.00040547,2]
[341270233,1730735527191,-1971.19,0.00040547,2]
[341270234,1730735527202,-1610.78,0.00040547,2]
[341270235,1730735527213,-1096.83,0.00040547,2]
[341270236,1730735527223,-500.0,0.00040547,2]
[341270237,1730735527234,-516.0,0.00040547,2]
[341270238,1730735527244,-520.94,0.00040547,2]
[341270239,1730735527255,-527.03,0.00040547,2]
[341270240,1730735527266,-680.27,0.00040547,2]
[341270241,1730735527275,-568.1,0.00040547,2]
[341270242,1730735527285,-630.31,0.00040547,2]
[341270243,1730735527295,-388.87888564,0.00040547,2]
[341270244,1730735527306,-511.55,0.00040547,2]
[341270245,1730735527316,-879.99,0.00040547,2]
[341270246,1730735527326,-1000.0,0.00040547,30]
[341270247,1730735527336,-860.12,0.00040547,2]
[341270248,1730735527346,-678.21,0.00040547,2]
[341270249,1730735527358,-777.65,0.00040547,2]
[341270250,1730735527367,-500.0,0.00040547,2]
[341270251,1730735527378,-512.81,0.00040547,2]
[341270252,1730735527390,-1976.03,0.00040547,2]
[341270253,1730735527402,-977.14,0.00040547,2]
[341270254,1730735527415,-500.0,0.00040547,2]
[341270255,1730735527426,-500.0,0.00040547,2]
[341270256,1730735527436,-622.99,0.00040547,2]
[341270257,1730735527446,-712.32,0.00040547,2]
[341270258,1730735527457,-1115.68,0.00040547,2]
[341270259,1730735527468,-500.0,0.00040547,2]
[341270260,1730735527479,-808.98,0.00040547,2]
[341270261,1730735527488,-585.41853443,0.00040547,2]
[341270262,1730735527498,-1426.9,0.00040547,2]
[341270263,1730735527510,-1323.81,0.00040547,2]
[341270264,1730735527520,-666.03,0.00040547,2]
[341270265,1730735527530,-839.44,0.00040547,2]
[341270266,1730735527540,-500.0,0.00040547,2]
[341270267,1730735527550,-737.61,0.00040547,2]
[341270268,1730735527560,-500.0,0.00040547,2]
[341270269,1730735527571,-628.78,0.00040547,2]
[341270270,1730735527581,-753.23,0.00040547,2]
[341270271,1730735527590,-512.34,0.00040547,2]
[341270272,1730735527600,-690.94,0.00040547,2]
[341270273,1730735527610,-956.46,0.00040547,2]
[341270274,1730735527620,-1122.64,0.00040547,2]
[341270275,1730735527631,-1420.89,0.00040547,2]
[341270276,1730735527642,-705.19,0.00040547,2]
[341270277,1730735527652,-767.22,0.00040547,2]
[341270278,1730735527665,-869.5,0.00040547,2]
[341270279,1730735527675,-712.63,0.00040547,2]
[341270280,1730735527686,-937.08,0.00040547,2]
[341270281,1730735527695,-764.15,0.00040547,2]
[341270282,1730735527705,-500.0,0.00040547,2]
[341270283,1730735527715,-1294.05,0.00040547,2]
[341270284,1730735527727,-510.62,0.00040547,2]
[341270285,1730735527738,-524.31,0.00040547,2]
[341270286,1730735527750,-575.99,0.00040547,2]
[341270287,1730735527763,-1118.2,0.00040547,2]
[341270288,1730735527772,-711.3,0.00040547,2]
[341270289,1730735527782,-620.0113422,0.00040547,2]
[341270290,1730735527792,-500.0,0.00040547,2]
[341270291,1730735527801,-1519.0,0.00040547,2]
[341270292,1730735527812,-470.97501225,0.00040547,2]
[341270293,1730735527822,-544.05,0.00040547,2]
[341270294,1730735527831,-1126.44,0.00040547,2]
[341270295,1730735527841,-500.0,0.00040547,2]
[341270296,1730735527851,-1288.14,0.00040547,2]
[341270297,1730735527862,-543.83,0.00040547,2]
[341270298,1730735527871,-636.36,0.00040547,2]
[341270299,1730735527881,-1218.15,0.00040547,2]
[341270300,1730735527891,-1259.81,0.00040547,2]
[341270301,1730735527900,-1651.88,0.00040547,2]
[341270302,1730735527910,-319.99,0.00040547,2]
[341270303,1730735527920,-1360.92,0.00040547,2]
[341270304,1730735527929,-912.89,0.00040547,2]
[341270305,1730735527940,-500.0,0.00040547,2]
[341270306,1730735527950,-719.39,0.00040547,2]
[341270307,1730735527960,-704.43,0.00040547,2]
[341270308,1730735527970,-669.63,0.00040547,2]
[341270309,1730735527980,-500.0,0.00040547,2]
[341270310,1730735527990,-529.69,0.00040547,2]
[341270311,1730735528001,-1802.68,0.00040547,2]
[341270312,1730735528011,-500.0,0.00040547,2]
[341270313,1730735528021,-500.0,0.00040547,2]
[341270314,1730735528031,-687.5,0.00040547,2]
[341270315,1730735528040,-1321.04,0.00040547,2]
[341270316,1730735528050,-909.72,0.00040547,2]
[341270317,1730735528060,-465.01327614,0.00040547,2]
[341270318,1730735528069,-510.00840763,0.00040547,2]
[341270319,1730735528078,-549.42,0.00040547,2]
[341270320,1730735528087,-879.57,0.00040547,2]
[341270321,1730735528097,-571.76,0.00040547,2]
[341270322,1730735528107,-534.69,0.00040547,2]
[341270323,1730735528117,-500.0,0.00040547,2]
[341270324,1730735528127,-939.96,0.00040547,2]
[341270325,1730735528136,-500.0,0.00040547,2]
[341270326,1730735528146,-980.66,0.00040547,2]
[341270327,1730735528156,-500.0,0.00040547,2]
[341270328,1730735528166,-546.11,0.00040547,2]
[341270329,1730735528175,-500.0,0.00040547,2]
[341270330,1730735528185,-511.22,0.00040547,2]
[341270331,1730735528195,-613.38436889,0.00040547,2]
[341270332,1730735528206,-505.5,0.00040547,2]
[341270333,1730735528218,-984.46,0.00040547,2]
[341270334,1730735528229,-614.73,0.00040547,2]
[341270335,1730735528239,-500.0,0.00040547,2]
[341270336,1730735528249,-988.32,0.00040547,2]
[341270337,1730735528260,-602.48,0.00040547,2]
[341270338,1730735528272,-631.52,0.00040547,2]
[341270339,1730735528281,-553.74,0.00040547,2]
[341270340,1730735528290,-988.27,0.00040547,2]
[341270341,1730735528300,-769.98,0.00040547,2]
[341270342,1730735528310,-1956.97,0.00040547,2]
[341270343,1730735528320,-566.39,0.00040547,2]
[341270344,1730735528332,-1694.4,0.00040547,2]
[341270345,1730735528343,-515.3,0.00040547,2]
[341270346,1730735528353,-879.85,0.00040547,2]
[341270347,1730735528362,-652.97,0.00040547,2]
[341270348,1730735528372,-689.03,0.00040547,2]
[341270349,1730735528383,-500.0,0.00040547,2]
[341270350,1730735528393,-500.0,0.00040547,2]
[341270351,1730735528403,-777.65,0.00040547,2]
[341270352,1730735528416,-378.2580551,0.00040547,2]
[341270353,1730735528427,-609.2,0.00040547,2]
[341270354,1730735528437,-1141.77,0.00040547,2]
[341270355,1730735528447,-815.25,0.00040547,2]
[341270356,1730735528458,-1247.49,0.00040547,2]
[341270357,1730735528468,-611.47,0.00040547,2]
[341270358,1730735528478,-877.23,0.00040547,2]
[341270359,1730735528489,-1538.63,0.00040547,2]
[341270360,1730735528499,-1051.45,0.00040547,2]
[341270361,1730735528509,-4150.77,0.00040547,2]
[341270362,1730735528518,-1876.8,0.00040547,2]
[341270363,1730735528527,-1151.0,0.00040547,2]
[341270364,1730735528538,-745.46,0.00040547,2]
[341270365,1730735528547,-1770.42,0.00040547,2]
[341270366,1730735528556,-510.09,0.00040547,2]
[341270367,1730735528566,-522.29,0.00040547,2]
[341270368,1730735528575,-958.22,0.00040547,2]
[341270369,1730735528586,-1127.16,0.00040547,2]
[341270370,1730735528595,-865.69,0.00040547,2]
[341270371,1730735528605,-1128.13,0.00040547,2]
[341270372,1730735528615,-1045.13,0.00040547,2]
[341270373,1730735528626,-531.53,0.00040547,2]
[341270374,1730735528636,-1098.81,0.00040547,2]
[341270375,1730735528646,-2026.72,0.00040547,2]
[341270376,1730735528655,-520.4,0.00040547,2]
[341270377,1730735528665,-519.04,0.00040547,2]
[341270378,1730735528674,-496.94116575,0.00040547,2]
[341270379,1730735528685,-627.52,0.00040547,2]
[341270380,1730735528694,-587.36,0.00040547,2]
[341270381,1730735528704,-2121.93,0.00040547,2]
[341270382,1730735528714,-500.07937429,0.00040547,2]
[341270383,1730735528725,-582.71,0.00040547,2]
[341270384,1730735528736,-791.14,0.00040547,2]
[341270385,1730735528745,-1427.63,0.00040547,2]
[341270386,1730735528757,-1116.56,0.00040547,2]
[341270387,1730735528767,-2018.13,0.00040547,2]
[341270388,1730735528776,-1093.28,0.00040547,2]
[341270389,1730735528786,-1687.58,0.00040547,2]
[341270390,1730735528795,-1104.45,0.00040547,2]
[341270391,1730735528805,-911.86,0.00040547,2]
[341270392,1730735528815,-835.19,0.00040547,2]
[341270393,1730735528824,-878.68,0.00040547,2]
[341270394,1730735528835,-1098.84,0.00040547,2]
[341270395,1730735528844,-500.0,0.00040547,2]
[341270396,1730735528853,-2183.79,0.00040547,2]
[341270397,1730735528863,-1310.74,0.00040547,2]
[341270398,1730735528872,-820.36,0.00040547,2]
[341270399,1730735528882,-515.02,0.00040547,2]
[341270400,1730735528892,-500.0,0.00040547,2]
[341270401,1730735528901,-1708.91,0.00040547,2]
[341270402,1730735528911,-544.98,0.00040547,2]
[341270403,1730735528920,-660.53,0.00040547,2]
[341270404,1730735528929,-564.44,0.00040547,2]
[341270405,1730735528939,-850.52,0.00040547,2]
[341270406,1730735528949,-752.59,0.00040547,2]
[341270407,1730735528959,-500.0,0.00040547,2]
[341270408,1730735528968,-1296.67,0.00040547,2]
[341270409,1730735528978,-1584.46,0.00040547,2]
[341270410,1730735528988,-1066.3,0.00040547,2]
[341270411,1730735528998,-1582.17,0.00040547,2]
[341270412,1730735529008,-500.0,0.00040547,2]
[341270413,1730735529017,-1042.76,0.00040547,2]
[341270414,1730735529026,-1058.38,0.00040547,2]
[341270415,1730735529035,-505.09,0.00040547,2]
[341270416,1730735529045,-200.0,0.00040547,2]
[341270417,1730735529054,-913.46,0.00040547,2]
[341270418,1730735529063,-2146.82,0.00040547,2]
[341270419,1730735529073,-766.26,0.00040547,2]
[341270420,1730735529083,-1191.45,0.00040547,2]
[341270421,1730735529093,-609.71,0.00040547,2]
[341270422,1730735529103,-938.94,0.00040547,2]
[341270423,1730735529113,-734.64,0.00040547,2]
[341270424,1730735529122,-530.41,0.00040547,2]
[341270425,1730735529275,-1127.04,0.00040547,2]
[341270426,1730735529285,-654.01,0.00040547,2]
[341270427,1730735529295,-3340.62,0.00040547,2]
[341270428,1730735529304,-10593.24,0.00040547,2]
[341270429,1730735529314,-735.14,0.00040547,2]
[341270430,1730735529324,-3005.2,0.00040547,2]
[341270431,1730735529333,-528.03,0.00040547,2]
[341270432,1730735529344,-500.0,0.00040547,2]
[341270433,1730735529354,-1246.62,0.00040547,2]
[341270434,1730735529363,-558.26,0.00040547,2]
[341270435,1730735529372,-656.86,0.00040547,2]
[341270436,1730735529382,-1000.0,0.00040547,2]
[341270437,1730735529391,-625.73,0.00040547,2]
[341270438,1730735529402,-2616.04,0.00040547,2]
[341270439,1730735529415,-1222.7,0.00040547,2]
[341270440,1730735529425,-514.78,0.00040547,2]
[341270441,1730735529435,-3461.86,0.00040547,2]
[341270442,1730735529446,-500.0,0.00040547,2]
[341270443,1730735529457,-500.0,0.00040547,2]
[341270444,1730735529467,-954.74,0.00040547,2]
[341270445,1730735529476,-692.32,0.00040547,2]
[341270446,1730735529486,-596.33,0.00040547,2]
[341270447,1730735529497,-153.753,0.0004057,120]
[341270448,1730735529507,-935.12,0.000406,14]
[341270449,1730735529518,-250.0,0.000406,30]
[341270450,1730735529527,-167.0,0.0004061,2]
[341270451,1730735529538,-174.17818,0.00040688,7]
[341270452,1730735529547,-707.25398063,0.00040707,15]
[341270453,1730735529558,-159.121,0.00040736,30]
[341270454,1730735529569,-153.22,0.00040802,120]
[341270455,1730735529580,-519.87,0.00040821,2]
[341270456,1730735529590,-595.97,0.00040821,2]
[341270457,1730735529601,-562.46,0.00040821,2]
[341270458,1730735529610,-845.59,0.00040821,2]
[341270459,1730735529620,-750.1,0.00040821,2]
[341270460,1730735529630,-567.62,0.00040821,2]
[341270461,1730735529641,-1971.19,0.00040821,2]
[341270462,1730735529651,-1610.78,0.00040821,2]
[341270463,1730735529663,-1096.83,0.00040821,2]
[341270464,1730735529673,-341.36707546,0.00040821,2]
[341270465,1730735529684,-516.0,0.00040821,2]
[341270466,1730735529694,-520.94,0.00040821,2]
[341270467,1730735529704,-527.03,0.00040821,2]
[341270468,1730735529714,-680.27,0.00040821,2]
[341270469,1730735529724,-568.1,0.00040821,2]
[341270470,1730735529734,-630.31,0.00040821,2]
[341270471,1730735529744,-511.55,0.00040821,2]
[341270472,1730735529757,-879.99,0.00040821,2]
[341270473,1730735529767,-1000.0,0.00040821,30]
[341270474,1730735529777,-860.12,0.00040821,2]
[341270475,1730735529787,-678.21,0.00040821,2]
[341270476,1730735529797,-777.65,0.00040821,2]
[341270477,1730735529807,-500.0,0.00040821,2]
[341270478,1730735529817,-512.81,0.00040821,2]
[341270479,1730735529827,-1976.03,0.00040821,2]
[341270480,1730735529838,-977.14,0.00040821,2]
[341270481,1730735529849,-500.0,0.00040821,2]
[341270482,1730735529859,-500.0,0.00040821,2]
[341270483,1730735529869,-622.99,0.00040821,2]
[341270484,1730735529879,-712.32,0.00040821,2]
[341270485,1730735529890,-1115.68,0.00040821,2]
[341270486,1730735529900,-395.50777291,0.00040821,2]
[341270487,1730735529911,-808.98,0.00040821,2]
[341270488,1730735529920,-1426.9,0.00040821,2]
[341270489,1730735529930,-1323.81,0.00040821,2]
[341270490,1730735529940,-666.03,0.00040821,2]
[341270491,1730735529950,-839.44,0.00040821,2]
[341270492,1730735529960,-500.0,0.00040821,2]
[341270493,1730735529971,-737.61,0.00040821,2]
[341270494,1730735529982,-500.0,0.00040821,2]
[341270495,1730735529991,-628.78,0.00040821,2]
[341270496,1730735530001,-753.23,0.00040821,2]